{"text_format":"1","workbook":"xlsx","n_sheets":2,"sheets":["Template","Translate"],"not_rendered":{"charts":0,"images":0,"macros":1,"external_links":0,"defined_names":1,"comments":0,"pivot_tables":0},"unopened":[],"bounds":{"document_bytes":16777216,"sheet_cells":100000,"rows_first":2000,"rows_last":500,"rows_between":2000,"halvings":0,"cell_chars":16384,"cell_head_chars":4096},"cells_cut":0,"cells_raw":0,"read":"whole","date_system":"1900"}

{"sheet":"Template","index":0,"n_rows":38,"n_cols":93,"rows_kept":38,"cut":false,"hidden":false,"merged":[[37,0,37,45],[20,44,20,64],[23,44,23,64],[19,21,19,27],[20,21,20,27],[23,21,23,27],[19,28,19,43],[20,28,20,43],[23,28,23,43],[26,0,26,15],[20,0,20,5],[23,0,23,5],[20,6,20,20],[23,6,23,20],[34,0,34,23],[27,31,29,58],[34,31,34,58],[21,0,21,5],[21,6,21,20],[21,21,21,27],[21,28,21,43],[21,44,21,64],[27,0,29,23],[30,0,30,23],[31,0,33,23],[30,31,30,58],[31,31,33,58],[22,0,22,5],[22,6,22,20],[22,21,22,27],[22,28,22,43],[22,44,22,64],[7,0,14,64],[15,44,15,64],[16,44,16,64],[17,44,17,64],[16,0,16,5],[17,0,17,5],[15,21,15,27],[16,21,16,27],[17,21,17,27],[17,6,17,20],[15,28,15,43],[16,28,16,43],[15,6,15,20],[16,6,16,20],[15,0,15,5],[18,44,18,64],[19,44,19,64],[17,28,17,43],[18,28,18,43],[19,0,19,5],[18,6,18,20],[19,6,19,20],[18,0,18,5],[18,21,18,27],[0,1,0,61],[3,26,3,32],[1,0,1,11],[1,12,1,32],[3,0,3,25],[2,0,2,9],[2,11,2,32]]}
[null,{"$f":"(INDEX(Translate!$A$4:$C$23,MATCH(1,Translate!$A$4:$A$23,0),MATCH($BQ$2,Translate!$A$4:$C$4,0)))","v":"APPENDIX D - Broader Public Sector Accountability Act, 2010 (BPSAA) - Corrective Action Plan Template"},null,null,null,null,null,null,null,null,null,null,null,null,null,null,null,null,null,null,null,null,null,null,null,null,null,null,null,null,null,null,null,null,null,null,null,null,null,null,null,null,null,null,null,null,null,null,null,null,null,null,null,null,null,null,null,null,null,null,null,null,null,null,null,null,null,null,null,null,null,null,null,null,null,null,null,null,null,null,null,null,null,null,null,null,null,null,null,null,null,null,"French"]
[{"$f":"(INDEX(Translate!$A$4:$C$23,MATCH(2,Translate!$A$4:$A$23,0),MATCH($BQ$2,Translate!$A$4:$C$4,0)))","v":"Date: (mm/dd/yyyy)"},null,null,null,null,null,null,null,null,null,null,null,null,null,null,null,null,null,null,null,null,null,null,null,null,null,null,null,null,null,null,null,null,null,null,null,null,null,null,null,null,null,null,null,null,null,null,null,null,null,null,null,null,null,null,null,null,null,null,null,null,null,null,null,null,null,null,null,"English",null,null,null,null,null,null,null,null,null,null,null,null,null,null,null,null,null,null,null,null,null,null,null,"English"]
[{"$f":"(INDEX(Translate!$A$4:$C$23,MATCH(4,Translate!$A$4:$A$23,0),MATCH($BQ$2,Translate!$A$4:$C$4,0)))","v":"Board Name:"}]
[{"$f":"(INDEX(Translate!$A$4:$C$23,MATCH(5,Translate!$A$4:$A$23,0),MATCH($BQ$2,Translate!$A$4:$C$4,0)))","v":"Total # of Individuals with Corrective Action Plan :"}]
[]
[{"$f":"(INDEX(Translate!$A$4:$C$23,MATCH(6,Translate!$A$4:$A$23,0),MATCH($BQ$2,Translate!$A$4:$C$4,0)))","v":"Executive Summary: "}]
[{"$f":"(INDEX(Translate!$A$4:$C$23,MATCH(7,Translate!$A$4:$A$23,0),MATCH($BQ$2,Translate!$A$4:$C$4,0)))","v":"(Overview of the board's approach on its corrective action plan)"}]
[]
[]
[]
[]
[]
[]
[]
[]
[{"$f":"(INDEX(Translate!$A$4:$C$23,MATCH(8,Translate!$A$4:$A$23,0),MATCH($BQ$2,Translate!$A$4:$C$4,0)))","v":"Individual"},{"$f":"(INDEX(Translate!$A$4:$C$23,MATCH(1,Translate!$A$4:$A$23,0),MATCH($BQ$2,Translate!$A$4:$C$4,0)))","v":"APPENDIX D - Broader Public Sector Accountability Act, 2010 (BPSAA) - Corrective Action Plan Template"},{"$f":"(INDEX(Translate!$A$4:$C$23,MATCH(1,Translate!$A$4:$A$23,0),MATCH($BQ$2,Translate!$A$4:$C$4,0)))","v":"APPENDIX D - Broader Public Sector Accountability Act, 2010 (BPSAA) - Corrective Action Plan Template"},{"$f":"(INDEX(Translate!$A$4:$C$23,MATCH(1,Translate!$A$4:$A$23,0),MATCH($BQ$2,Translate!$A$4:$C$4,0)))","v":"APPENDIX D - Broader Public Sector Accountability Act, 2010 (BPSAA) - Corrective Action Plan Template"},{"$f":"(INDEX(Translate!$A$4:$C$23,MATCH(1,Translate!$A$4:$A$23,0),MATCH($BQ$2,Translate!$A$4:$C$4,0)))","v":"APPENDIX D - Broader Public Sector Accountability Act, 2010 (BPSAA) - Corrective Action Plan Template"},{"$f":"(INDEX(Translate!$A$4:$C$23,MATCH(1,Translate!$A$4:$A$23,0),MATCH($BQ$2,Translate!$A$4:$C$4,0)))","v":"APPENDIX D - Broader Public Sector Accountability Act, 2010 (BPSAA) - Corrective Action Plan Template"},{"$f":"(INDEX(Translate!$A$4:$C$23,MATCH(9,Translate!$A$4:$A$23,0),MATCH($BQ$2,Translate!$A$4:$C$4,0)))","v":"Nature of Non-Compliance       (Select from Drop-Down Menu)"},null,null,null,null,null,null,null,null,null,null,null,null,null,null,{"$f":"(INDEX(Translate!$A$4:$C$23,MATCH(10,Translate!$A$4:$A$23,0),MATCH($BQ$2,Translate!$A$4:$C$4,0)))","v":"Timeframe to Address Non-Compliance (Select from Drop-Down Menu)"},null,null,null,null,null,null,{"$f":"(INDEX(Translate!$A$4:$C$23,MATCH(11,Translate!$A$4:$A$23,0),MATCH($BQ$2,Translate!$A$4:$C$4,0)))","v":"Actions Taken to Address Non-Compliance\n(Select from Drop-Down Menu)"},null,null,null,null,null,null,null,null,null,null,null,null,null,null,null,{"$f":"(INDEX(Translate!$A$4:$C$23,MATCH(12,Translate!$A$4:$A$23,0),MATCH($BQ$2,Translate!$A$4:$C$4,0)))","v":"Additional Comments, If Required"}]
[1]
[2]
[3]
[4]
[5]
[6]
[]
["xxstopxx"]
[{"$f":"(INDEX(Translate!$A$4:$C$23,MATCH(13,Translate!$A$4:$A$23,0),MATCH($BQ$2,Translate!$A$4:$C$4,0)))","v":"Note: At the board's discretion, any additional applicable information may be submitted with this template."}]
[]
[{"$f":"(INDEX(Translate!$A$4:$C$23,MATCH(14,Translate!$A$4:$A$23,0),MATCH($BQ$2,Translate!$A$4:$C$4,0)))","v":"Approved By:"}]
[]
[]
[]
[{"$f":"(INDEX(Translate!$A$4:$C$23,MATCH(15,Translate!$A$4:$A$23,0),MATCH($BQ$2,Translate!$A$4:$C$4,0)))","v":"Director (First Name, Last Name)"},null,null,null,null,null,null,null,null,null,null,null,null,null,null,null,null,null,null,null,null,null,null,null,null,null,null,null,null,null,null,{"$f":"(INDEX(Translate!$A$4:$C$23,MATCH(18,Translate!$A$4:$A$23,0),MATCH($BQ$2,Translate!$A$4:$C$4,0)))","v":"Chair of the Board (First Name, Last Name)"}]
[]
[]
[]
[{"$f":"(INDEX(Translate!$A$4:$C$23,MATCH(16,Translate!$A$4:$A$23,0),MATCH($BQ$2,Translate!$A$4:$C$4,0)))","v":"Signature"},null,null,null,null,null,null,null,null,null,null,null,null,null,null,null,null,null,null,null,null,null,null,null,null,null,null,null,null,null,null,{"$f":"(INDEX(Translate!$A$4:$C$23,MATCH(19,Translate!$A$4:$A$23,0),MATCH($BQ$2,Translate!$A$4:$C$4,0)))","v":"Signature"}]
[]
[]
[{"$f":"(INDEX(Translate!$A$4:$C$23,MATCH(17,Translate!$A$4:$A$23,0),MATCH($BQ$2,Translate!$A$4:$C$4,0)))","v":"Please submit to: accountability.reports@ontario.ca no later than April 2, 2015"}]

{"sheet":"Translate","index":1,"n_rows":130,"n_cols":37,"rows_kept":130,"cut":false,"hidden":true,"merged":[]}
[]
[null,null,null,null,null,null,null,null,null,null,null,null,null,null,null,null,null,null,null,null,null,null,null,null,null,null,{"$f":"(INDEX(Translate!$A$4:$C$39,MATCH(20,Translate!$A$4:$A$39,0),MATCH(Template!$BQ$2,Translate!$A$4:$C$4,0)))","v":"Movement on the grid"},null,null,null,null,{"$f":"(INDEX(Translate!$A$4:$C$39,MATCH(26,Translate!$A$4:$A$39,0),MATCH(Template!$BQ$2,Translate!$A$4:$C$4,0)))","v":"0-1 Years"},null,null,null,null,{"$f":"(INDEX(Translate!$A$4:$C$39,MATCH(30,Translate!$A$4:$A$39,0),MATCH(Template!$BQ$2,Translate!$A$4:$C$4,0)))","v":"Payroll Reductions"}]
[null,null,null,null,null,null,null,null,null,null,null,null,null,null,null,null,null,null,null,null,null,null,null,null,null,null,{"$f":"(INDEX(Translate!$A$4:$C$39,MATCH(21,Translate!$A$4:$A$39,0),MATCH(Template!$BQ$2,Translate!$A$4:$C$4,0)))","v":"Increase to salary range "},null,null,null,null,{"$f":"(INDEX(Translate!$A$4:$C$39,MATCH(27,Translate!$A$4:$A$39,0),MATCH(Template!$BQ$2,Translate!$A$4:$C$4,0)))","v":"1-2 Years"},null,null,null,null,{"$f":"(INDEX(Translate!$A$4:$C$39,MATCH(31,Translate!$A$4:$A$39,0),MATCH(Template!$BQ$2,Translate!$A$4:$C$4,0)))","v":"Unpaid Days"}]
["Cell","English","French",null,null,null,null,null,null,null,null,null,null,null,null,null,null,null,null,null,null,null,null,null,null,null,{"$f":"(INDEX(Translate!$A$4:$C$39,MATCH(22,Translate!$A$4:$A$39,0),MATCH(Template!$BQ$2,Translate!$A$4:$C$4,0)))","v":"Increases to vacation or other benefits"},null,null,null,null,{"$f":"(INDEX(Translate!$A$4:$C$39,MATCH(28,Translate!$A$4:$A$39,0),MATCH(Template!$BQ$2,Translate!$A$4:$C$4,0)))","v":"2-3 Years"},null,null,null,null,{"$f":"(INDEX(Translate!$A$4:$C$39,MATCH(32,Translate!$A$4:$A$39,0),MATCH(Template!$BQ$2,Translate!$A$4:$C$4,0)))","v":"Reduction in Vacation Days"}]
[1,"APPENDIX D - Broader Public Sector Accountability Act, 2010 (BPSAA) - Corrective Action Plan Template","Annexe D - Loi de 2010 sur la responsabilisation du secteur parapublic (« Loi ») – Modèle du plan d’actions correctives",null,null,null,null,null,null,null,null,null,null,"Loi de 2010 sur la responsabilisation du secteur parapublic (« Loi ») – Plan d’actions correctives (ébauche)",null,null,null,null,null,null,null,null,null,null,null,null,{"$f":"(INDEX(Translate!$A$4:$C$39,MATCH(23,Translate!$A$4:$A$39,0),MATCH(Template!$BQ$2,Translate!$A$4:$C$4,0)))","v":"Increase in perquisite or other payments "},null,null,null,null,null,null,null,null,null,{"$f":"(INDEX(Translate!$A$4:$C$39,MATCH(33,Translate!$A$4:$A$39,0),MATCH(Template!$BQ$2,Translate!$A$4:$C$4,0)))","v":"Reduction in future compensation (Please include details in comments section)"}]
[2,"Date: (mm/dd/yyyy)","Date: (mm/jj/aaaa)",null,null,null,null,null,null,null,null,null,null,null,null,null,null,null,null,null,null,null,null,null,null,null,{"$f":"(INDEX(Translate!$A$4:$C$39,MATCH(24,Translate!$A$4:$A$39,0),MATCH(Template!$BQ$2,Translate!$A$4:$C$4,0)))","v":"Increases in travel allowances"},null,null,null,null,null,null,null,null,null,{"$f":"(INDEX(Translate!$A$4:$C$39,MATCH(34,Translate!$A$4:$A$39,0),MATCH(Template!$BQ$2,Translate!$A$4:$C$4,0)))","v":"Combination of Options (Please include details in comments section)"}]
[3,"Board #:","No du conseil: ",null,null,null,null,null,null,null,null,null,null,null,null,null,null,null,null,null,null,null,null,null,null,null,{"$f":"(INDEX(Translate!$A$4:$C$39,MATCH(25,Translate!$A$4:$A$39,0),MATCH(Template!$BQ$2,Translate!$A$4:$C$4,0)))","v":"Other (please include details in comments section)"},null,null,null,null,null,null,null,null,null,{"$f":"(INDEX(Translate!$A$4:$C$39,MATCH(35,Translate!$A$4:$A$39,0),MATCH(Template!$BQ$2,Translate!$A$4:$C$4,0)))","v":"Other (Please include details in comment section)"}]
[4,"Board Name:","Nom du conseil:"]
[5,"Total # of Individuals with Corrective Action Plan :","Nombre de personnes concernés par le plan d’actions correctives : "]
[6,"Executive Summary: ","Résumé: "]
[7,"(Overview of the board's approach on its corrective action plan)","(Vue d'ensemble de la démarche du conseil sur son plan d'action correctif)"]
[8,"Individual","Individu: "]
[9,"Nature of Non-Compliance       (Select from Drop-Down Menu)","Nature de la non-conformité (sélectionner dans le menu déroulant)"]
[10,"Timeframe to Address Non-Compliance (Select from Drop-Down Menu)","Calendrier pour remédier la non-confirmité\n(sélectionner dans le menu déroulant)"]
[11,"Actions Taken to Address Non-Compliance\n(Select from Drop-Down Menu)","Mesures prises pour remédier la non-conformité\n(sélectionner dans le menu déroulant)"]
[12,"Additional Comments, If Required","Commentaires supplémentaires au besoin"]
[13,"Note: At the board's discretion, any additional applicable information may be submitted with this template.","Remarque: À la discrétion des conseils, des renseignements complémentaires applicables peuvent être présentés dans ce modèle."]
[14,"Approved By:","Approuvé par :"]
[15,"Director (First Name, Last Name)","Directeur ou directrice (prénom, nom)"]
[16,"Signature","Signature"]
[17,"Please submit to: accountability.reports@ontario.ca no later than April 2, 2015","S'il vous plaît soumettre à: accountability.reports@ontario.ca, d'ici le 2 avril 2015 "]
[18,"Chair of the Board (First Name, Last Name)","Président ou présidente du conseil (prénom, nom)"]
[19,"Signature","Signature"]
[20,"Movement on the grid","Mouvement dans la grille des salaires"]
[21,"Increase to salary range ","Augmentation des tranches de salaire"]
[22,"Increases to vacation or other benefits","Augmentation du temps de vacances ou des avantages sociaux"]
[23,"Increase in perquisite or other payments ","Avantages en nature ou augmentation d'autres rémunérations"]
[24,"Increases in travel allowances","Augmentation des notes de frais forfaitaires"]
[25,"Other (please include details in comments section)","Autres (SVP inclure le détail dans la section commentaires)"]
[26,"0-1 Years","0-1 Ans"]
[27,"1-2 Years","1-2 Ans"]
[28,"2-3 Years","2-3 Ans"]
[29,"3-5 years","3-5 Ans"]
[30,"Payroll Reductions","Réductions de salaire"]
[31,"Unpaid Days","Congé sans solde"]
[32,"Reduction in Vacation Days","Réduction des jours de congé payés"]
[33,"Reduction in future compensation (Please include details in comments section)","Réduction de compensation future (SVP inclure le détail dans la section commentaires)"]
[34,"Combination of Options (Please include details in comments section)","Combinaison de plusieurs mesures (SVP inclure le détail dans la section commentaires) "]
[35,"Other (Please include details in comment section)","Autres (SVP inclure le détail dans la section commentaires)"]
[]
[]
[]
[]
[]
[]
[]
[]
[]
[]
[]
[]
[]
[null,"Algoma DSB"]
[null,"Algonquin & Lakeshore Cath DSB"]
[null,"Avon Maitland DSB"]
[null,"Bluewater DSB"]
[null,"Brant Haldimand Norfolk CDSB"]
[null,"Bruce-Grey Catholic DSB"]
[null,"Cath DSB of Eastern Ontario"]
[null,"CEP de l'Est de l'Ontario"]
[null,"Conseil scolaire Viamonde"]
[null,"CSC Providence"]
[null,"CSD cath. Centre-Est de l'Ont."]
[null,"CSD cath. de l'Est ontarien"]
[null,"CSD cath. des Aurores boréales"]
[null,"CSD cath. des Grandes Rivières"]
[null,"CSD cath. du Nouvel-Ontario"]
[null,"CSD catholique Centre-Sud"]
[null,"CSD catholique Franco-Nord"]
[null,"CSD du Grand Nord de l'Ontario"]
[null,"CSD du Nord-Est de l'Ontario"]
[null,"DSB of Niagara"]
[null,"DSB Ontario North East"]
[null,"Dufferin-Peel Catholic DSB"]
[null,"Durham Catholic DSB"]
[null,"Durham DSB"]
[null,"Grand Erie DSB"]
[null,"Greater Essex County DSB"]
[null,"Halton Catholic DSB"]
[null,"Halton DSB"]
[null,"Hamilton-Wentworth Cath DSB"]
[null,"Hamilton-Wentworth DSB"]
[null,"Hastings & Prince Edward DSB"]
[null,"Huron-Perth Catholic DSB"]
[null,"Huron-Superior Catholic DSB"]
[null,"Kawartha Pine Ridge DSB"]
[null,"Keewatin-Patricia DSB"]
[null,"Kenora Catholic DSB"]
[null,"Lakehead DSB"]
[null,"Lambton Kent DSB"]
[null,"Limestone DSB"]
[null,"London Dist. Catholic School"]
[null,"Near North DSB"]
[null,"Niagara Catholic DSB"]
[null,"Nipissing-Parry Sound Cath DSB"]
[null,"Northeastern Catholic DSB"]
[null,"Northwest Catholic DSB"]
[null,"Ottawa Catholic DSB"]
[null,"Ottawa-Carleton DSB"]
[null,"Peel DSB"]
[null,"PVNC Catholic DSB"]
[null,"Rainbow DSB"]
[null,"Rainy River DSB"]
[null,"Renfrew County Catholic DSB"]
[null,"Renfrew County DSB"]
[null,"Simcoe County DSB"]
[null,"Simcoe Muskoka Catholic DSB"]
[null,"St. Clair Catholic DSB"]
[null,"Sudbury Catholic DSB"]
[null,"Superior North Catholic DSB"]
[null,"Superior-Greenstone DSB"]
[null,"Thames Valley DSB"]
[null,"Thunder Bay Catholic DSB"]
[null,"Toronto Catholic DSB"]
[null,"Toronto DSB"]
[null,"Trillium Lakelands DSB"]
[null,"Upper Canada DSB"]
[null,"Upper Grand DSB"]
[null,"Waterloo Catholic DSB"]
[null,"Waterloo Region DSB"]
[null,"Wellington Catholic DSB"]
[null,"Windsor-Essex Catholic DSB"]
[null,"York Catholic DSB"]
[null,"York Region DSB"]
[null,"Bloorview MacMillan School Authority"]
[null,"Campbell Children's Centre School Authority"]
[null,"James Bay Lowlands Secondary School Board"]
[null,"Moose Factory District School Authority Board"]
[null,"Moosonee District School Authority Board"]
[null,"Penetanguishene Protestant School Board"]